bitfinex-derivatives/quotes_SOLF0:USTF0_20260312
["timestamp","ask_amount","ask_price","bid_price","bid_amount"]
[1773317554220,16.86118815,86.967,86.941,10.56495102]
[1773317555314,16.86118815,86.967,86.942,10.56495102]
[1773317555511,10.347,86.966,86.942,10.56495102]
[1773317555713,16.86118815,86.979,86.942,10.56495102]
[1773317555911,16.86118815,86.979,86.945,10.56495102]
[1773317557021,16.86118815,86.979,86.95,10.56495102]
[1773317557223,16.86118815,86.979,86.949,10.56495102]
[1773317557615,10.345,86.978,86.949,10.56495102]
[1773317557816,27.20618815,86.978,86.949,10.56495102]
[1773317558223,27.20618815,86.978,86.948,10.56495102]
[1773317559324,27.20618815,86.978,86.947,10.56495102]
[1773317560222,10.346,86.976,86.946,10.56495102]
[1773317560923,27.20718815,86.976,86.946,10.56495102]
[1773317561124,10.346,86.969,86.942,10.56495102]
[1773317561322,10.346,86.969,86.941,10.56495102]
[1773317561722,10.346,86.969,86.94,10.56495102]
[1773317561925,16.86118815,86.976,86.94,10.56495102]
[1773317562318,16.86118815,86.976,86.939,10.56495102]
[1773317562523,27.20718815,86.976,86.939,10.56495102]
[1773317563229,27.20718815,86.976,86.944,10.56495102]
[1773317564229,16.66821456,86.975,86.943,10.56495102]
[1773317567126,16.66821456,86.975,86.942,10.56495102]
[1773317569525,10.346,86.972,86.942,10.56495102]
[1773317569727,10.346,86.972,86.939,25.77768808]
[1773317570230,10.346,86.972,86.942,10.56495102]
[1773317570627,16.71084582,86.972,86.941,10.56495102]
[1773317570826,16.71084582,86.972,86.946,10.56495102]
[1773317571727,16.71084582,87.023,86.949,15.25737588]
[1773317572025,16.71084582,87.023,86.977,10.56495102]
[1773317572229,16.71084582,87.023,86.976,10.56495102]
[1773317572423,16.71084582,87.021,86.975,10.56495102]
[1773317572620,16.71084582,87.021,86.973,10.56495102]
[1773317573024,16.71084582,87.014,86.973,10.56495102]
[1773317573330,16.71084582,87.014,86.971,10.56495102]
[1773317573728,16.71084582,87.004,86.971,10.56495102]
[1773317573927,16.71084582,87.004,86.97,10.56495102]
[1773317575126,43.46,87.017,86.96,2.47020386]
[1773317575127,27.05284582,87.003,86.968,10.56495102]
[1773317575329,27.05284582,87.003,86.969,10.56495102]
[1773317575524,16.71084582,87.003,86.969,10.56495102]
[1773317576124,16.71084582,87.003,86.97,2.47020386]
[1773317577128,16.71084582,87.003,86.969,10.56495102]
[1773317577428,16.71084582,87.003,86.968,10.56495102]
[1773317578233,16.71084582,87.003,86.967,10.56495102]
[1773317580328,16.71084582,86.995,86.954,10.56495102]
[1773317580628,16.71084582,86.995,86.958,10.56495102]
[1773317580830,16.71084582,86.995,86.957,10.56495102]
[1773317581231,16.71084582,86.995,86.958,10.56495102]
[1773317581729,10.342,87.007,86.963,15.35692994]
[1773317582035,27.05284582,87.007,86.967,10.56495102]
[1773317582237,16.71084582,87.006,86.965,10.56495102]
[1773317582530,16.71084582,87.006,86.97,2.47020386]
[1773317582935,10.342,87.005,86.97,2.47020386]
[1773317583230,43.46,87.01,86.97,17.36400567]
[1773317583732,43.46,87.01,86.97,17.35934497]
[1773317585032,10.341,87.012,86.97,17.35934497]
[1773317587236,16.71084582,87.011,86.97,17.35934497]
[1773317590242,16.71084582,87.011,86.97,27.92429599]
[1773317591242,16.71084582,87.011,86.971,15.16552022]
[1773317592144,16.71084582,87.011,86.971,25.73047124]
[1773317592439,16.71084582,87.011,86.971,10.56495102]
[1773317592639,16.71084582,87.011,86.904,34.54]
[1773317592640,16.71084582,87.009,86.947,14.25943388]
[1773317592944,16.71084582,86.999,86.945,15.20673772]
[1773317593140,16.71084582,86.999,86.949,15.20673772]
[1773317593542,16.71084582,86.999,86.95,17.69112537]
[1773317593942,27.05384582,86.994,86.954,10.348]
[1773317594144,16.71084582,86.993,86.954,10.348]
[1773317594339,16.71084582,86.993,86.95,17.69112537]
[1773317594744,16.71084582,86.986,86.937,15.24302835]
[1773317595845,10.345,86.981,86.937,15.24302835]
[1773317596046,16.71084582,86.98,86.937,15.24302835]
[1773317597345,10.345,86.979,86.938,10.35]
[1773317597549,16.71084582,86.978,86.938,10.35]
[1773317598050,16.71084582,86.976,86.938,15.08018831]
[1773317598850,16.71084582,86.995,86.941,15.27805089]
[1773317599049,43.44,86.998,86.942,10.35]
[1773317599050,16.71084582,86.983,86.942,10.35]
[1773317599647,16.71084582,86.983,86.943,15.29451508]
[1773317599853,16.71084582,86.997,86.952,15.29451508]
[1773317600649,10.343,86.996,86.96,2.46554316]
[1773317601449,10.343,86.996,86.956,15.58149814]
[1773317601651,27.00943155,87.005,86.961,15.59847601]
[1773317601844,16.66743155,87.004,86.961,15.59847601]
[1773317602953,16.66743155,87.004,86.961,25.94547601]
[1773317603453,16.66743155,87.004,86.962,15.67312445]
[1773317603653,16.66743155,87.004,86.965,15.67312445]
[1773317604250,16.66743155,87.004,86.965,40.21802661]
[1773317604845,16.66743155,87.004,86.965,29.87102661]
[1773317605052,16.66743155,87.013,86.972,26.0232572]
[1773317606151,16.66743155,87.011,86.972,15.6772572]
[1773317606358,16.66743155,87.011,86.975,14.19790216]
[1773317606556,16.66743155,87.011,86.968,14.19790216]
[1773317606951,16.66743155,87.009,86.968,14.19790216]
[1773317607147,16.66743155,87.009,86.969,14.19790216]
[1773317607555,16.66743155,87.009,86.967,14.19790216]
[1773317607955,16.66743155,87.006,86.967,14.19790216]
[1773317608154,16.66743155,87.006,86.968,14.19790216]
[1773317608953,16.66743155,87.006,86.967,14.19790216]
[1773317609158,16.66743155,87.006,86.968,14.19790216]
[1773317609858,16.66743155,87.006,86.96,18.17414086]
[1773317609859,16.66743155,87.006,86.972,14.19790216]
[1773317610750,16.66743155,87.006,86.971,14.19790216]
[1773317610949,16.66743155,87.006,86.968,14.19790216]
[1773317611149,16.66743155,87.006,86.969,14.19790216]
[1773317611350,16.66743155,86.999,86.946,21.21864836]
[1773317611551,27.01143155,86.987,86.946,21.21864836]
[1773317611960,27.01143155,86.987,86.944,15.44131152]
[1773317612654,16.66743155,86.987,86.944,15.44131152]
[1773317612861,16.66743155,86.987,86.94,2.46554316]
[1773317612862,16.66743155,86.987,86.948,15.42297323]
[1773317613057,10.344,86.994,86.952,15.42297323]
[1773317613252,10.344,86.994,86.953,15.42297323]
[1773317613856,10.344,86.994,86.953,25.77097323]
[1773317614163,10.344,86.994,86.954,15.43678371]
[1773317615068,16.66743155,86.999,86.955,15.46232315]
[1773317616168,16.66743155,86.999,86.955,36.68097151]
[1773317616864,16.66743155,86.997,86.955,36.68097151]
[1773317617960,10.344,86.993,86.955,36.68097151]
[1773317618968,16.66743155,87.009,86.961,15.46348343]
[1773317619275,16.66743155,87.021,86.98,17.9428169]
[1773317619576,16.66743155,87.039,86.991,15.47727374]
[1773317620970,10.34,87.024,86.991,15.47727374]
[1773317623577,209.60847215,87.044,86.991,15.47727374]
[1773317623774,16.69638101,87.042,86.991,15.47727374]
[1773317624076,16.69638101,87.034,86.991,15.47727374]
[1773317624874,16.69638101,87.032,86.991,15.47727374]
[1773317625775,60.13638101,87.031,86.991,15.47727374]
[1773317625978,10.339,87.03,86.991,15.47727374]
[1773317626668,10.34,87.023,86.991,15.47727374]
[1773317627671,60.13638101,87.031,86.991,15.47727374]
[1773317627875,16.69638101,87.03,86.991,15.47727374]
[1773317629780,10.339,87.029,86.991,15.47727374]
[1773317629973,43.44,87.031,86.991,15.47727374]
[1773317629974,16.69638101,87.028,86.991,15.47727374]
[1773317630576,17.34479302,87.011,86.974,15.63016337]
[1773317631280,10.342,87.003,86.974,15.63016337]
[1773317631480,17.34479302,87.011,86.974,15.63016337]
[1773317631877,17.34479302,87.001,86.96,15.51863836]
[1773317632980,10.343,86.998,86.96,15.51863836]
[1773317633978,17.34479302,86.997,86.953,10.348]
[1773317634679,17.34479302,86.997,86.955,15.2543146]
[1773317635982,17.34479302,86.997,86.958,10.348]
[1773317636283,17.34479302,86.997,86.958,25.61263886]
[1773317637186,17.34479302,86.997,86.958,15.26463886]
[1773317638885,10.343,86.996,86.958,15.26463886]
[1773317639985,17.34479302,86.995,86.958,15.26463886]
[1773317640185,17.34479302,86.993,86.951,21.21864836]
[1773317640482,2.46554316,86.99,86.946,15.29511847]
[1773317640678,2.46554316,86.99,86.897,35.63660049]
[1773317640679,17.34479302,86.979,86.939,21.21864836]
[1773317640881,17.34479302,86.977,86.931,15.30176835]
[1773317641381,11.52,87.039,86.896,43.44]
[1773317641382,17.34479302,87.004,86.96,2.46554316]
[1773317641585,43.44,87.003,86.961,15.31222365]
[1773317642182,43.44,87.003,86.97,2.46554316]
[1773317642384,43.44,87.003,86.971,15.32173277]
[1773317642582,17.34479302,87.017,86.971,15.32173277]
[1773317642782,17.34479302,87.021,86.971,15.32173277]
[1773317643382,17.34479302,87.021,86.972,15.39754933]
[1773317643587,17.34479302,87.021,86.97,2.46554316]
[1773317644082,17.34479302,87.021,86.969,14.22236974]
[1773317644484,17.34479302,87.021,86.969,29.62922968]
[1773317644686,10.341,87.013,86.97,15.284067]
[1773317645086,27.68579302,87.013,86.97,15.284067]
[1773317647489,17.34479302,87.012,86.97,15.284067]
[1773317650686,17.34479302,87.012,86.973,14.22236974]
[1773317651487,10.342,87.011,86.973,14.22236974]
[1773317651685,17.34479302,87.012,86.974,15.3094578]
[1773317652082,17.34479302,87.012,86.977,10.345]
[1773317652286,17.34479302,87.012,86.978,15.31866543]
[1773317652690,17.34479302,87.012,86.989,10.65825138]
[1773317653191,17.34479302,87.012,86.988,10.65825138]
[1773317653393,17.34479302,87.012,86.978,15.31866543]
[1773317653394,17.34479302,87.012,86.989,10.65825138]
[1773317654090,17.34479302,87.009,86.969,14.22236974]
[1773317654290,2.46605359,87.0,86.965,14.22236974]
[1773317654498,17.34479302,86.989,86.956,14.22236974]
[1773317654696,43.44,86.988,86.956,14.22236974]
[1773317654899,17.34479302,86.987,86.954,14.22236974]
[1773317655192,17.34479302,86.986,86.95,14.22236974]
[1773317655493,17.34479302,86.986,86.951,14.22236974]
[1773317656392,17.34479302,86.986,86.95,14.22236974]
[1773317656595,17.34479302,86.986,86.952,10.348]
[1773317656794,17.34479302,86.986,86.955,14.22236974]
[1773317657195,17.34479302,86.986,86.951,14.22236974]
[1773317657795,17.34479302,86.986,86.95,29.9833756]
[1773317658695,27.68879302,86.986,86.95,29.9833756]
[1773317659702,17.34479302,86.986,86.952,10.348]
[1773317659903,17.34479302,86.986,86.954,14.22236974]
[1773317660094,26.53924621,87.02,86.967,14.22236974]
[1773317660301,10.343,86.996,86.965,14.22236974]
[1773317660492,32.08245864,87.009,86.963,14.22236974]
[1773317662003,42.22334927,87.003,86.963,14.22236974]
[1773317663002,31.80289766,86.999,86.96,14.22236974]
[1773317663202,31.80289766,86.999,86.959,14.22236974]
[1773317663403,31.80289766,86.999,86.952,14.22236974]
[1773317663602,31.80289766,86.999,86.953,14.22236974]
[1773317663903,31.80289766,86.999,86.954,14.22236974]
[1773317664100,31.80311903,86.988,86.954,14.22236974]
[1773317664301,31.80311903,86.988,86.953,14.22236974]
[1773317664805,31.80311903,86.988,86.92,28.44588685]
[1773317664806,31.80311903,86.988,86.958,14.22236974]
[1773317665102,31.80311903,86.988,86.954,14.22236974]
[1773317665706,31.7447803,86.985,86.948,14.22236974]
[1773317665902,31.7447803,86.985,86.944,14.22236974]
[1773317666102,31.73627638,86.981,86.944,14.22236974]
[1773317667504,31.73627638,86.981,86.943,14.22236974]
[1773317668808,31.846509,86.977,86.939,14.22236974]
[1773317669608,31.846509,86.973,86.938,14.22236974]
[1773317671006,31.82948509,86.971,86.938,14.22236974]
[1773317671202,24.71576811,86.949,86.921,14.22597899]
[1773317671505,24.71576811,86.944,86.9,2.46605359]
[1773317671899,24.71576811,86.944,86.9,12.82105359]
[1773317672100,35.0566514,86.936,86.89,2.46605359]
[1773317672298,24.7066514,86.935,86.88,2.46605359]
[1773317674109,24.7066514,86.935,86.885,10.356]
[1773317674808,24.7066514,86.935,86.893,10.355]
[1773317676100,24.7066514,86.935,86.885,10.356]
[1773317676607,2.46605359,86.94,86.885,10.356]
[1773317676608,24.75163464,86.933,86.885,10.356]
[1773317679610,24.75163464,86.933,86.895,10.355]
[1773317680008,24.75163464,86.933,86.88,2.46605359]
[1773317682107,24.8158073,86.929,86.87,2.46605359]
[1773317682311,24.8158073,86.919,86.86,2.46605359]
[1773317682508,24.8158073,86.907,86.861,10.359]
[1773317684315,24.8158073,86.907,86.868,10.358]
[1773317695318,24.8158073,86.907,86.867,10.359]
[1773317695523,24.8158073,86.907,86.85,2.46605359]
[1773317696826,24.45663292,86.889,86.83,2.46605359]
[1773317697925,24.45663292,86.889,86.85,10.361]
[1773317699525,24.45663292,86.889,86.842,10.362]
[1773317700324,24.45577426,86.879,86.842,10.362]
[1773317702025,24.45577426,86.879,86.849,10.361]
[1773317702228,24.4666329,86.909,86.85,2.46605359]
[1773317702424,24.4666329,86.909,86.86,2.46605359]
[1773317703227,24.43893286,86.907,86.834,20.726]
[1773317703422,24.43893286,86.907,86.85,2.46605359]
[1773317703623,24.43893286,86.907,86.84,2.46605359]
[1773317703922,2.46605359,86.9,86.84,2.46605359]
[1773317704128,24.43539275,86.899,86.84,2.46605359]
[1773317704329,24.43539275,86.899,86.855,10.36]
[1773317705330,24.43539275,86.899,86.861,10.359]
[1773317716429,24.70449698,86.889,86.852,14.17291235]
[1773317716629,24.70449698,86.879,86.834,14.17291235]
[1773317716830,24.70271228,86.869,86.834,14.17291235]
[1773317717034,24.70271228,86.869,86.83,14.17291235]
[1773317717436,24.70271228,86.869,86.827,10.363]
[1773317717944,24.69839165,86.866,86.827,10.363]
[1773317718240,24.69839165,86.866,86.836,10.362]
[1773317720041,24.69839165,86.866,86.826,14.17291235]
[1773317720237,24.73017982,86.859,86.82,14.17291235]
[1773317720437,24.73017982,86.859,86.819,10.364]
[1773317725639,24.73017982,86.859,86.821,14.17291235]
[1773317726342,24.73017982,86.859,86.822,14.17291235]
[1773317728147,24.73017982,86.859,86.825,10.364]
[1773317728347,24.73017982,86.859,86.825,24.53691235]
[1773317728743,24.73017982,86.859,86.823,14.17291235]
[1773317729347,24.73017982,86.859,86.822,14.17291235]
[1773317729546,24.73017982,86.859,86.82,14.17291235]
[1773317729747,24.73017982,86.859,86.822,14.17291235]
[1773317731347,24.73017982,86.859,86.823,14.17291235]
[1773317731550,24.73017982,86.859,86.822,14.17291235]
[1773317732948,24.29794521,86.858,86.819,14.17291235]
[1773317733146,24.29794521,86.858,86.818,24.53691235]
[1773317733351,24.29794521,86.849,86.818,24.53691235]
[1773317734251,24.29564989,86.847,86.811,10.365]
[1773317734748,24.19509052,86.839,86.804,10.366]
[1773317741456,24.19509052,86.839,86.81,10.365]
[1773317751462,24.19509052,86.839,86.799,14.17291235]
[1773317751661,24.19509052,86.839,86.794,14.17291235]
[1773317752164,24.19509052,86.839,86.815,10.365]
[1773317759569,43.5,86.845,86.815,10.365]
[1773317759964,23.77074596,86.849,86.81,14.17291235]
[1773317760167,67.27047877,86.86,86.815,14.17291235]
[1773317760373,67.27047877,86.86,86.824,14.17291235]
[1773317760871,67.27047877,86.86,86.826,10.363]
[1773317761171,67.27047877,86.86,86.827,14.17291235]
[1773317761366,23.81040652,86.859,86.827,14.17291235]
[1773317761768,23.81002877,86.849,86.808,14.17291235]
[1773317761968,23.81002877,86.849,86.78,2.47275552]
[1773317761969,23.81002877,86.849,86.806,14.17291235]
[1773317762167,23.81002877,86.844,86.807,14.17291235]
[1773317762371,43.5,86.846,86.815,14.17291235]
[1773317762573,43.5,86.853,86.823,14.17291235]
[1773317764267,43.5,86.853,86.824,14.17291235]
[1773317764471,43.5,86.853,86.82,10.364]
[1773317764472,67.31115288,86.853,86.82,24.53691235]
[1773317766172,23.74865341,86.852,86.82,24.53691235]
[1773317766373,23.74865341,86.852,86.82,10.364]
[1773317767673,23.74827236,86.851,86.82,10.364]
[1773317770481,23.74827236,86.851,86.82,24.53691235]
[1773317771271,23.80857027,86.839,86.817,14.17291235]
[1773317771580,23.80857027,86.839,86.811,14.17291235]
[1773317772079,23.80822907,86.837,86.811,14.17291235]
[1773317773174,23.80822907,86.837,86.812,14.17291235]
[1773317774385,23.80822907,86.837,86.812,24.53791235]
[1773317776186,23.80822907,86.837,86.813,14.17291235]
[1773317777187,23.80822907,86.837,86.814,14.17291235]
[1773317781890,23.80822907,86.837,86.815,14.17291235]
[1773317783093,23.80822907,86.837,86.816,10.365]
[1773317783292,23.80822907,86.837,86.815,14.17291235]
[1773317786098,23.80822907,86.837,86.82,14.17291235]
[1773317788600,23.80822907,86.837,86.81,10.365]
[1773317788601,23.80822907,86.837,86.818,14.17291235]
[1773317789303,23.80822907,86.837,86.814,14.17291235]
[1773317790300,23.80822907,86.837,86.818,14.17291235]
[1773317792708,23.80822907,86.837,86.819,14.17291235]
[1773317792907,23.80822907,86.837,86.82,14.17291235]
[1773317793208,23.71870348,86.872,86.83,14.17291235]
[1773317793402,2.47510148,86.89,86.841,14.17291235]
[1773317793601,11.64740719,86.929,86.786,161.291]
[1773317793602,43.5,86.898,86.859,14.17291235]
[1773317793797,43.5,86.898,86.846,21.23471517]
[1773317793798,43.5,86.898,86.864,14.17291235]
[1773317794304,43.5,86.898,86.859,14.17291235]
[1773317794504,43.5,86.903,86.865,24.53191235]
[1773317794704,43.5,86.905,86.865,24.53191235]
[1773317795404,43.5,86.905,86.865,10.359]
[1773317795605,14.1712831,86.894,86.861,14.17291235]
[1773317795805,14.17129006,86.889,86.855,14.17291235]
[1773317796108,14.17129006,86.889,86.852,14.17291235]
[1773317796303,14.17129006,86.889,86.853,14.17291235]
[1773317797106,14.17129006,86.889,86.851,14.17291235]
[1773317797708,14.17129006,86.889,86.848,14.17291235]
[1773317797905,14.17129006,86.889,86.856,10.36]
[1773317799009,14.17129006,86.889,86.847,14.17291235]
[1773317799010,14.17129006,86.889,86.846,10.361]
[1773317799307,14.16710607,86.879,86.83,14.17291235]
[1773317799702,14.16710607,86.878,86.83,14.17291235]
[1773317800204,14.16712848,86.869,86.819,14.17291235]
[1773317800399,14.16712848,86.869,86.817,14.17291235]
[1773317801910,14.16712848,86.869,86.829,10.363]
[1773317806908,2.47510148,86.86,86.82,24.53691235]
[1773317807113,14.30521543,86.849,86.81,14.17291235]
[1773317807312,14.30521543,86.849,86.805,14.17291235]
[1773317807513,16.78031691,86.84,86.801,14.17291235]
[1773317807714,16.78031691,86.84,86.805,14.17291235]
[1773317808113,16.78031691,86.84,86.801,14.17291235]
[1773317808712,16.78031691,86.84,86.804,10.366]
[1773317812216,16.78031691,86.84,86.799,14.17291235]
[1773317813915,16.78031691,86.84,86.8,10.367]
[1773317815814,14.47196964,86.829,86.799,14.17291235]
[1773317816012,14.47196964,86.829,86.798,14.17291235]
[1773317816316,14.47196964,86.829,86.797,24.53991235]
[1773317820225,14.47196964,86.829,86.797,10.367]
[1773317820728,10.362,86.837,86.797,24.53991235]
[1773317820925,24.8025908,86.837,86.797,24.53991235]
[1773317821130,14.4405908,86.836,86.797,24.53991235]
[1773317822027,14.4405908,86.836,86.797,14.17291235]
[1773317822245,14.43994498,86.849,86.798,14.17291235]
[1773317822934,14.43994498,86.849,86.809,10.366]
[1773317823829,14.44425147,86.829,86.794,14.17291235]
[1773317824034,14.44425147,86.829,86.788,14.17291235]
[1773317825932,14.44425147,86.829,86.791,10.368]
[1773317827133,14.44425147,86.829,86.798,10.367]
[1773317829431,2.47710097,86.84,86.804,10.366]
[1773317830438,14.47742101,86.841,86.81,10.365]
[1773317832138,2.47710097,86.85,86.81,10.365]
[1773317833038,16.9599336,86.85,86.81,10.365]
[1773317836343,14.73909208,86.848,86.81,10.365]
[1773317839742,14.73949288,86.845,86.802,10.366]
[1773317839943,14.73949288,86.839,86.802,10.366]
[1773317840951,14.75006338,86.837,86.802,10.366]
[1773317842240,14.75006338,86.837,86.805,10.366]
[1773317843142,14.75006338,86.837,86.807,10.366]
[1773317843944,10.361,86.845,86.807,10.366]
[1773317844145,10.361,86.845,86.807,24.53891235]
[1773317844340,10.361,86.845,86.808,14.17291235]
[1773317844945,25.20762087,86.845,86.81,10.365]
[1773317845540,14.84662087,86.861,86.819,14.17291235]
[1773317845737,14.84662087,86.861,86.81,2.47710097]
[1773317845738,14.84662087,86.861,86.829,14.17291235]
[1773317845940,14.84533014,86.884,86.844,14.17291235]
[1773317846144,14.84533014,86.884,86.846,14.17291235]
[1773317846341,14.84533014,86.884,86.844,14.17291235]
[1773317846537,14.84533014,86.884,86.81,28.59090322]
[1773317846538,2.47710097,86.86,86.843,0.00093354]
[1773317846740,9.04191249,86.859,86.822,21.23471517]
[1773317846943,9.04191249,86.859,86.806,2.71333528]
[1773317846944,2.47710097,86.88,86.834,3.10344999]
[1773317847143,9.04191249,86.883,86.834,3.10344999]
[1773317847754,9.04191249,86.896,86.853,3.07089656]
[1773317848552,9.04191249,86.894,86.853,3.07089656]
[1773317849248,9.04191249,86.894,86.853,13.43089656]
[1773317849451,43.5,86.915,86.841,3.26758057]
[1773317849452,9.04191249,86.889,86.841,3.26758057]
[1773317849649,9.04191249,86.879,86.829,21.23471517]
[1773317849845,9.04191249,86.859,86.814,3.26884707]
[1773317850250,9.04191249,86.859,86.82,13.59967124]
[1773317850757,9.04191249,86.859,86.82,3.23567124]
[1773317850946,9.04191249,86.859,86.827,10.363]
[1773317851750,9.04191249,86.859,86.82,3.23567124]
[1773317852850,9.04191249,86.859,86.82,13.59967124]
[1773317853051,9.04191249,86.859,86.82,10.364]
[1773317853253,9.04191249,86.859,86.808,21.23471517]
[1773317853450,9.04191249,86.859,86.806,3.05159164]
[1773317854852,9.04191249,86.857,86.813,10.365]
[1773317855256,9.04191249,86.857,86.814,2.93674342]
[1773317855856,9.04191249,86.857,86.817,2.9383154]
[1773317856347,9.04191249,86.857,86.816,10.365]
[1773317856550,9.04191249,86.857,86.79,2.47710097]
[1773317856551,9.04191249,86.857,86.803,2.90378731]
[1773317856747,2.47710097,86.85,86.803,2.90378731]
[1773317856953,9.04191249,86.849,86.8,21.23471517]
[1773317857153,9.04191249,86.849,86.805,21.23471517]
[1773317857351,9.04191249,86.864,86.81,2.47710097]
[1773317857552,9.04191249,86.864,86.811,2.79001711]
[1773317859655,2.47710097,86.87,86.776,78.04]
[1773317859656,9.04191249,86.911,86.84,2.47710097]
[1773317859851,9.04191249,86.899,86.841,2.68908587]
[1773317860055,9.04191249,86.899,86.843,2.68908587]
[1773317860854,9.04191249,86.898,86.855,10.36]
[1773317861665,9.04191249,86.898,86.851,2.53620284]
[1773317862164,9.04191249,86.898,86.857,10.36]
[1773317862457,9.04191249,86.898,86.851,2.53620284]
[1773317862660,9.04191249,86.898,86.872,10.358]
[1773317863861,8.76017733,86.911,86.878,10.357]
[1773317864362,8.76017733,86.911,86.871,10.358]
[1773317864562,8.76017733,86.909,86.85,2.40779173]
[1773317864763,8.76017733,86.899,86.85,2.40779173]
[1773317865463,8.76017733,86.913,86.861,2.42180598]
[1773317865763,8.76017733,86.911,86.861,2.42180598]
[1773317865960,8.76017733,86.908,86.85,2.47710097]
[1773317866362,8.76017733,86.908,86.851,2.39308425]
[1773317866965,8.76017733,86.906,86.86,10.359]
[1773317868368,8.76017733,86.902,86.86,10.359]
[1773317868960,8.76017733,86.902,86.866,10.359]
[1773317869762,8.76017733,86.902,86.856,10.36]
[1773317870263,8.76017733,86.902,86.851,2.39308425]
[1773317870264,8.76017733,86.902,86.86,2.47710097]
[1773317870456,160.943,86.974,86.86,2.47710097]
[1773317870457,7.95188319,86.911,86.872,10.358]
[1773317871661,7.95188319,86.911,86.88,10.357]
[1773317872062,7.95188319,86.911,86.872,10.358]
[1773317872869,7.95188319,86.911,86.879,10.357]
[1773317875664,7.95188319,86.925,86.881,1.99414115]
[1773317875866,43.5,86.924,86.881,1.99414115]
[1773317876571,7.95188319,86.923,86.864,1.96736755]
[1773317876771,7.95188319,86.919,86.864,1.96736755]
[1773317877973,7.95188319,86.912,86.87,10.358]
[1773317878762,7.95188319,86.912,86.877,10.357]
[1773317879369,7.95188319,86.912,86.864,1.96736755]
[1773317880064,7.95188319,86.909,86.851,1.87587546]
[1773317880269,7.95188319,86.899,86.851,1.87587546]
[1773317880672,7.95188319,86.897,86.861,10.359]
[1773317881875,7.95188319,86.897,86.868,10.358]
[1773317883972,20.701,86.939,86.791,34.54]
[1773317883973,7.95188319,86.919,86.875,12.19397541]
[1773317884375,7.95188319,86.919,86.875,1.83597541]
[1773317884573,7.95188319,86.935,86.881,1.81156531]
[1773317884969,7.95188319,86.957,86.924,10.352]
[1773317885170,7.95188319,86.971,86.924,12.08428089]
[1773317885370,7.95188319,86.989,86.94,2.47710097]
[1773317885574,7.95188319,86.989,86.931,1.70815117]
[1773317885776,7.95188319,86.979,86.921,1.70971734]
[1773317886272,7.95188319,86.979,86.931,10.351]
[1773317886776,7.95188319,86.977,86.924,10.352]
[1773317887680,7.95188319,86.977,86.93,3.96170036]
[1773317887880,7.95188319,86.977,86.931,1.49603055]
[1773317888580,7.95188319,86.991,86.941,1.47272277]
[1773317889377,7.95188319,87.009,86.951,1.71488134]
[1773317889882,7.95188319,87.009,86.954,10.348]
[1773317890077,7.95188319,87.009,86.954,12.06424828]
[1773317890477,7.95188319,87.009,86.962,10.347]
[1773317891278,7.95188319,86.999,86.936,1.62367522]
[1773317891484,43.48,87.016,86.936,1.62367522]
[1773317891485,7.95188319,86.989,86.936,1.62367522]
[1773317891876,7.95188319,86.989,86.945,1.60259206]
[1773317892982,7.95188319,86.989,86.95,10.349]
[1773317893487,7.95188319,87.002,86.959,10.348]
[1773317894585,2.46743588,86.99,86.945,1.60259206]
[1773317894785,7.95188319,86.989,86.945,1.60259206]
[1773317895288,7.95188319,86.989,86.947,10.349]
[1773317896282,7.95188319,86.989,86.938,10.35]
[1773317896491,7.95188319,86.989,86.938,1.45306627]
[1773317896787,7.95188319,86.989,86.948,10.349]
[1773317897584,7.95188319,86.989,86.953,10.348]
[1773317902691,7.95188319,86.989,86.949,1.41487149]
[1773317903788,2.46743588,86.98,86.92,2.46743588]
[1773317903985,8.16104612,86.969,86.919,1.41253725]
[1773317904190,8.16104612,86.959,86.919,1.41253725]
[1773317904388,8.16104612,86.959,86.933,10.351]
[1773317904694,2.46743588,86.98,86.933,10.351]
[1773317904695,8.16104612,86.979,86.933,10.351]
[1773317905084,8.16104612,86.969,86.926,10.352]
[1773317907596,8.16104612,86.959,86.919,10.352]
[1773317912200,8.16104612,86.939,86.881,1.34492779]
[1773317912389,2.46743588,86.93,86.881,1.34492779]
[1773317912591,8.16104612,86.929,86.881,1.34492779]
[1773317912793,8.16104612,86.929,86.868,1.32747801]
[1773317913499,8.16104612,86.929,86.871,1.31943382]
[1773317913695,8.16104612,86.929,86.884,1.31943382]
[1773317913897,8.16104612,86.943,86.891,1.32037087]
[1773317914988,8.16104612,86.943,86.905,10.354]
[1773317915900,8.16104612,86.939,86.898,10.355]
[1773317917192,8.16104612,86.939,86.891,1.32037087]
[1773317917393,10.63023205,87.119,87.012,160.871]
[1773317917598,15.42300612,87.132,87.09,7.35807466]
[1773317917599,6.12e-06,87.132,87.09,7.35807466]